Cogmind - Beta 16 @@@ ROGUE MODE // 2026.01.29 @ 12:03:18 Player: GlasMayne Result: Destroyed by Y-45 Defender with Heavy Assault Rifle Performance ------------- Evolutions (2) 1000 Regions Visited (3) 600 Robots Destroyed (42) 210 Value Destroyed (1213) 1213 Prototype IDs (2) 40 Alien Tech Used (0) 0 Bonus (0) 0 TOTAL SCORE: 3063 Bonus ------- None Cogmind --------- Core Integrity 0/550 Matter 293/300 Energy 100/100 System Corruption 0% Temperature Cool (9) Movement Core (50) Location -8/Materials Parts ------- > --- POWER (2) -------- (None) > --- PROPULSION (3) --- (None) > --- UTILITY (4) ------ Advanced Targeting Computer > --- WEAPON (2) ------- (None) > --- INVENTORY (5) ---- Hardlight Generator Heavy Ion Cannon Heavy Ion Cannon Peak State ------------ > --- POWER ------------ Light Deuterium Engine Light Nuclear Core > --- PROPULSION ------- Aluminum Leg Aluminum Leg Carbon-fiber Leg > --- UTILITY ---------- Large Storage Unit Structural Scanner Improved Sensor Array Medium Armor Plating > --- WEAPON ----------- Heavy Ion Cannon Powered Hammer > --- INVENTORY -------- Armored Huge Wheel Armored Huge Wheel Medium Storage Unit Target Analyzer Particle Charger Improved Light Armor Plating Improved Light Armor Plating Heavy Ion Cannon Heavy Ion Cannon Heavy Ion Cannon Minigun Powered Hammer [Rating: 30] Favorites ----------- Power Light Nuclear Core Engine Ion Engine Power Core Light Nuclear Core Propulsion Aluminum Leg Treads Light Treads Leg Aluminum Leg Hover Unit Improved Hover Unit Utility Structural Scanner Device Structural Scanner Storage Large Storage Unit Processor Advanced Targeting Computer Protection Medium Armor Plating Weapon Improved Light Cannon Energy Gun Medium Laser Energy Cannon Heavy Ion Cannon Ballistic Gun Minigun Ballistic Cannon Improved Light Cannon Launcher Grenade Launcher Impact Weapon Powered Hammer Build | -11 -10 -9 -8 ------- Run | Yrd Mat Mat Mat Slots Evolved 4 | . . 2 2 Power 1 | . . . 1 Propulsion 1 | . . 1 . Utility 2 | . . 1 1 Weapon . | . . . . Parts Attached 37 | 6 11 9 11 Power 5 | 1 1 1 2 Engine 3 | 1 . 1 1 Core 2 | . 1 . 1 Reactor . | . . . . Propulsion 9 | 2 2 4 1 Treads 2 | 2 . . . Leg 4 | . . 3 1 Wheel . | . . . . Hover 3 | . 2 1 . Flight . | . . . . Utility 11 | 1 5 2 3 Device 5 | . 3 1 1 Storage 4 | 1 2 1 . Processor 1 | . . . 1 Hackware . | . . . . Protection 1 | . . . 1 Artifact . | . . . . Weapon 12 | 2 3 2 5 Energy Gun 2 | 1 . . 1 Energy Cannon 2 | . . . 2 Ballistic Gun 2 | 1 . . 1 Ballistic Cannon 3 | . 2 1 . Launcher 1 | . 1 . . Special Weapon . | . . . . Impact Weapon 2 | . . 1 1 Slashing Weapon . | . . . . Piercing Weapon . | . . . . Special Melee Weapon . | . . . . Unidentified Prototypes 2 | . . . 2 Parts Lost 20 | . . 8 12 Power 3 | . . 1 2 Propulsion 7 | . . 3 4 Utility 4 | . . 1 3 Weapon 6 | . . 3 3 Highest Loss Streak 6 | . . 6 6 To Critical Strikes . | . . . . Average Backups 10 | 4 7 10 12 Power . | . 1 . . Propulsion 3 | 3 4 2 2 Utility 2 | . . 2 3 Weapon 4 | . 1 3 5 Tool/Special . | . . . . Unused Backups 24 | . 7 . 17 Power 1 | . 1 . . Propulsion 9 | . 5 . 4 Utility 6 | . . . 6 Weapon 7 | . 1 . 6 Tool/Special 1 | . . . 1 Average Slot Usage (%) 89 | . 95 90 87 Engine 7 | . 7 4 8 Core 6 | . 6 6 7 Treads 3 | . 15 . . Leg 12 | . . 2 23 Hover 10 | . 12 28 . Device 14 | . 9 17 13 Storage 10 | . 14 11 9 Protection 3 | . . . 7 Energy Gun 1 | . 5 . . Energy Cannon 2 | . . . 5 Ballistic Gun 2 | . 5 . 2 Ballistic Cannon 7 | . 10 16 . Launcher 2 | . 5 1 2 Impact Weapon 3 | . . 1 6 Peak Build Rating 30 | 6 16 18 30 Average Rating 17 | 4 10 15 22 On Entrance 7 | . 6 13 10 Avg Prop Armor Cover (%) . | . . . . Naked Turns . | . . . . Heaviest Build 50 | 12 33 36 50 Greatest Support 40 | 40 40 30 35 Greatest Overweight (x) 10 | 2 2 3 10 Average Overweight (x) . | . . . 1 Largest Inventory Capacity 15 | 8 15 15 15 Average Capacity 13 | 7 8 14 14 Most Carried 15 | 6 9 14 15 Average Carried 11 | 5 7 10 14 Final Capacity 15 | 8 10 15 5 Final Carried 12 | 6 8 12 3 Class Distribution -------------------- 100% | Mutant Dominant Class ---------------- Mutant | -10/Materials Mutant | -9/Materials Mutant | -8/Materials Resources | -11 -10 -9 -8 ----------- Run | Yrd Mat Mat Mat Matter Collected 1105 | 160 148 677 120 Remotely . | . . . . Salvage Created 1358 | . 248 739 371 Parts 66 | . 17 39 10 Haulers Intercepted 2 | . . 2 . Recyclers Shooed 2 | . . 2 . Parts Field Recycled . | . . . . Retrieved Matter . | . . . . Parts Self-Destructed . | . . . . Prevented . | . . . . Parts Restored . | . . . . Kills | -11 -10 -9 -8 ------- Run | Yrd Mat Mat Mat Combat Hostiles Destroyed 35 | . 8 20 7 Melee 3 | . . 2 1 Guns 4 | . 4 . . Cannons 22 | . 2 16 4 AOE 4 | . 2 2 . Classes Destroyed 8 | . 2 5 1 Worker 1 | . . 1 . Tunneler 1 | . . 1 . Hauler 2 | . . 2 . Recycler 2 | . . 2 . Watcher 1 | . . . 1 Swarmer 9 | . 2 7 . Grunt 20 | . 6 9 5 Sentry 6 | . . 4 2 Best Kill Streak 5 | . 2 5 1 Combat Bots Only 5 | . 2 5 1 Max Kills in Single Turn 2 | . 2 2 1 Gunslinging . | . . . . Exploded 2 | . 2 2 . Melee 1 | . . 1 1 Uniques/NPCs Destroyed . | . . . . Combat | -11 -10 -9 -8 -------- Run | Yrd Mat Mat Mat Hostile Shots Fired 306 | . 45 108 153 Missed 78 | . 14 23 41 Hits 228 | . 31 85 112 Projectile 228 | . 31 85 112 Critical Strikes 7 | . 1 2 4 Damage Taken 2909 | . 387 833 1689 Core 810 | . 78 180 552 Absorbed by Shields 57 | . . 57 . Core Remaining (%) 74 | 100 68 55 . Volleys Fired 133 | . 20 56 57 Largest 2 | . 2 2 1 Hottest 70 | . 70 66 65 Shots Fired 197 | . 39 101 57 Gun 32 | . 22 . 10 Cannon 161 | . 14 100 47 Launcher 4 | . 3 1 . Special . | . . . . Kinetic 135 | . 25 100 10 Thermal 58 | . 11 . 47 Explosive 4 | . 3 1 . Electromagnetic . | . . . . Robot Hit Streak 10 | . 9 6 10 Robot Miss Streak 4 | . 3 3 4 Penetration Max . | . . . . Secondary Targets . | . . . . Shots Hit Robots 134 | . 26 58 50 Core Hits 50 | . 13 27 10 Critical Kills . | . . . . Critical Parts Destroyed 1 | . . 1 . Critical Strikes 5 | . 1 4 . Blast 4 | . 1 3 . Smash 1 | . . 1 . Melee Attacks 18 | . . 6 12 Impact 18 | . . 6 12 Slashing . | . . . . Piercing . | . . . . Sneak Attacks . | . . . . Combat Hostiles . | . . . . Follow-up Attacks . | . . . . Damage Inflicted 3212 | . 511 1397 1304 Guns 354 | . 210 . 144 Cannons 2275 | . 194 1217 864 Explosions 188 | . 107 81 . Melee 388 | . . 92 296 Ramming 7 | . . 7 . Kinetic 1665 | . 304 1217 144 Thermal 964 | . 100 . 864 Explosive 188 | . 107 81 . Electromagnetic . | . . . . Impact 388 | . . 92 296 Slashing . | . . . . Piercing . | . . . . Highest Corruption . | . . . . Average Corruption . | . . . . Corruption Purged . | . . . . Corruption Blocked . | . . . . Overload Shots . | . . . . Overflow Damage 109 | . 3 47 59 Projectiles 40 | . . 8 32 Explosions 3 | . 3 . . Melee 66 | . . 39 27 Knockbacks 12 | . 3 9 . Impact . | . . . . Kinetic 12 | . 3 9 . Secondary . | . . . . Self-Inflicted Damage 40 | . 37 3 . Shots 1 | . 1 . . Rammed 1 | . . 1 . Targets Rammed 1 | . . 1 . Kicked . | . . . . Crushed . | . . . . Highest Temperature 366 | . 90 166 366 Average Temperature 92 | . 38 56 125 Received Heat Transfer 1243 | . 159 310 774 Effects 1 | . . . 1 Energy Bleed 1 | . . . 1 Siege Activations . | . . . . Martial Activations . | . . . . Shielding Activations . | . . . . Robots Disrupted . | . . . . Combat Hostiles . | . . . . Robots Corrupted 2 | . . . 2 Combat Hostiles 2 | . . . 2 Parts Fried 3 | . . 2 1 Impact Corruptions 4 | . . 1 3 Robots Melted . | . . . . Combat Hostiles . | . . . . Parts Melted 4 | . 1 . 3 Heat Transferred 1480 | . 296 . 1184 Parts Sabotaged . | . . . . Parts Stolen . | . . . . Parts Stripped . | . . . . Power Chain Reactions . | . . . . Alert | -11 -10 -9 -8 ------- Run | Yrd Mat Mat Mat Maximum Alert Level 1 | . . 1 . Low Security (%) 94 | 100 100 82 100 Level 1 5 | . . 17 . Level 2 . | . . . . Level 3 . | . . . . Level 4 . | . . . . Level 5 . | . . . . High Security . | . . . . Max Security . | . . . . Peak Influence 248 | . 136 248 104 Initial 94 | . . 23 94 Average 64 | . 59 151 20 Influence Increases 1042 | . 222 567 253 Destroy 0b10 Robot/C 700 | . 160 400 140 Destroy 0b10 Robot/NC 35 | . . 30 5 Destroy Leader 166 | . 40 84 42 Successful Hack 67 | . 6 10 51 Disable Machine 30 | . . 30 . Destroy Structure 44 | . 16 13 15 Influence Decreases 1042 | . 166 399 477 Entered New Map 163 | . . 33 130 Time Decay 758 | . 166 286 306 Lost Part 121 | . . 80 41 Squads Dispatched 5 | . 1 2 2 Investigation 3 | . 1 2 . Extermination . | . . . . Reinforcement 2 | . . . 2 Assault . | . . . . Garrison . | . . . . Intercept . | . . . . Searches Triggered . | . . . . Construction Impeded . | . . . . Haulers Reinforced . | . . . . Active Scanning Responses . | . . . . Cargo Convoy Interrupts . | . . . . Stealth | -11 -10 -9 -8 --------- Run | Yrd Mat Mat Mat Distress Signals 5 | . 1 1 3 Communications Jammed . | . . . . Distress Signals . | . . . . Times Spotted 52 | . 12 24 16 Peak Tracking Total 6 | . 3 6 5 Tactical Retreats . | . . . . Traps | -11 -10 -9 -8 ------- Run | Yrd Mat Mat Mat Traps Triggered 1 | . . 1 . Indirectly . | . . . . Trap Hack Attempts . | . . . . Triggered . | . . . . Disarmed . | . . . . Reprogrammed . | . . . . Reused . | . . . . Traps Extracted . | . . . . Installed . | . . . . Triggered . | . . . . Machines | -11 -10 -9 -8 ---------- Run | Yrd Mat Mat Mat Machines Disabled 2 | . . 2 . Max in Single Turn 1 | . . 1 . Machines Repaired . | . . . . Machines Dismantled . | . . . . Machines Sabotaged . | . . . . Overloaded Fab Kills . | . . . . Hacking | -11 -10 -9 -8 --------- Run | Yrd Mat Mat Mat Machines Accessed 14 | . 3 5 6 Terminals 12 | . 3 3 6 Fabricators . | . . . . Repair Stations . | . . . . Recycling Units 1 | . . 1 . Scanalyzers 1 | . . 1 . Garrison Access . | . . . . Total Hacks 31 | . 5 12 14 Successful 21 | . 4 9 8 Failed 10 | . 1 3 6 Catastrophic 1 | . 1 . . Database Lockouts . | . . . . Manual 4 | . 2 . 2 Terminals 25 | . 5 6 14 Fabricators . | . . . . Repair Stations . | . . . . Recycling Units 1 | . . 1 . Scanalyzers 5 | . . 5 . Garrison Access . | . . . . Terminal Hacks 15 | . 4 3 8 Record 3 | . 1 . 2 Branch Access Points 1 | . . . 1 Scanalyzer Index 1 | . . . 1 Alert Level 1 | . 1 . . Locate Traps 1 | . 1 . . Hauler Manifests 1 | . . . 1 Zone Layout 7 | . 1 3 3 Fabricator Hacks . | . . . . Repair Station Hacks . | . . . . Recycling Unit Hacks 1 | . . 1 . Report Inventory 1 | . . 1 . Scanalyzer 5 | . . 5 . Insert Component 3 | . . 3 . Analyze 2 | . . 2 . Garrison Access Hacks . | . . . . Unauthorized Hacks . | . . . . Terminals . | . . . . Fabricators . | . . . . Repair Stations . | . . . . Recycling Units . | . . . . Scanalyzers . | . . . . Garrison Access . | . . . . Data Cores Recovered . | . . . . Used . | . . . . Hacking Detections 11 | . 1 4 6 Full Trace Events 2 | . 1 1 . Feedback Events . | . . . . Feedback Blocked . | . . . . Robot Schematics Acquired . | . . . . Robots Built . | . . . . Authchips . | . . . . Time . | . . . . Total Robot Build Rating . | . . . . Part Schematics Acquired 2 | . . 2 . Parts Built . | . . . . Authchips . | . . . . Time . | . . . . Total Part Build Rating . | . . . . Part Studies Acquired . | . . . . Parts Repaired . | . . . . Time . | . . . . Parts Recycled . | . . . . Recycled Matter . | . . . . Retrieved Matter . | . . . . Retrieved Components . | . . . . Parts Scanalyzed 2 | . . 2 . Part Schematics Acquired 2 | . . 2 . Parts Damaged . | . . . . Bothacking | -11 -10 -9 -8 ------------ Run | Yrd Mat Mat Mat Used RIF Installer . | . . . . Robots Hacked . | . . . . Non-combat . | . . . . Combat . | . . . . Robot Hacks Applied . | . . . . Relay Couplers Released . | . . . . Fabnet Peak Effective % . | . . . . Robots Rewired . | . . . . Allies Hacked . | . . . . Hacks Repelled . | . . . . Allies | -11 -10 -9 -8 -------- Run | Yrd Mat Mat Mat Total Allies . | . . . . Largest Group . | . . . . Highest-Rated Group . | . . . . Highest-Rated Ally . | . . . . Total Orders . | . . . . Ally Attacks . | . . . . Total Damage . | . . . . Kills . | . . . . Allies Corrupted . | . . . . Allies Melted . | . . . . Intel | -11 -10 -9 -8 ------- Run | Yrd Mat Mat Mat Active Infowar (turns) 1383 | . 99 378 906 Sensors 568 | . . . 568 Structural 1381 | . 99 378 904 Robot Analysis Total . | . . . . Derelict Logs Recovered . | . . . . Drone Launches . | . . . . Drone Recoveries . | . . . . Exploration | -11 -10 -9 -8 ------------- Run | Yrd Mat Mat Mat Turns Passed 2166 | 90 390 629 1057 Spaces Moved 1044 | 51 213 351 429 Core 20 | 14 . . 6 Treads 123 | 37 83 3 . Legs 460 | . . 37 423 Wheels . | . . . . Hover 441 | . 130 311 . Flight . | . . . . Fastest Speed 50 | 50 116 112 50 Average Speed 150 | 148 133 115 187 Slowest Speed 550 | 160 176 260 550 Overloaded Moves . | . . . . Propulsion Burnouts . | . . . . Robots Hopped . | . . . . Potential Cave-ins . | . . . . Cave-ins Triggered . | . . . . Exploration Rate (%) 28 | 4 39 31 39 Regions Visited 3 Branch Regions . Pre-discovered Areas . | . . . . Known Exits Taken . | . . . . Unknown Exits Taken 3 | 1 1 1 . Scrap Searched . | . . . . Spaces Dug 4 | . 4 . . Terrain Destroyed 45 | . 16 14 15 Melee . | . . . . Projectile 22 | . 1 6 15 AOE 23 | . 15 8 . Terrain Rammed . | . . . . Walls Destroyed . | . . . . Machines Disabled . | . . . . Actions | -11 -10 -9 -8 --------- Run | Yrd Mat Mat Mat Total 1411 | 62 280 459 610 Wait 105 | . 18 23 64 Move 1041 | 50 212 350 429 Hop . | . . . . Pick Up 42 | 6 8 8 20 Fast Attach 12 | 6 1 3 2 Attach 11 | . . 6 5 Detach 1 | . . 1 . Swap 21 | . 11 5 5 Drop 26 | . 10 . 16 Fire 133 | . 20 56 57 Melee 18 | . . 6 12 Ram 1 | . . 1 . Kick . | . . . . Crush . | . . . . Escape Stasis . | . . . . Rewire . | . . . . Trap . | . . . . Miscellaneous . | . . . . Route ------- -11/Scrapyard -10/Materials (discovered 2 exits: *Mat x2) -9/Materials -8/Materials History --------- Turn | Location | Event 21 | -11/Scrapyard | Discovered new exit (range 15) 91 | -11/Scrapyard | Entered Materials 334 | -10/Materials | Build established: Mutant 349 | -10/Materials | Discovered new exit (range 4) 462 | -10/Materials | Discovered new exit (range 11) 481 | -10/Materials | Entered another Materials area 481 | -9/Materials | Evolved 2 slots: Propulsion x1, Utility x1 943 | -9/Materials | Discovered new exit (range 15) 1070 | -9/Materials | Lost 6 parts (3n1u2w) 1110 | -9/Materials | Entered another Materials area 1110 | -8/Materials | Evolved 2 slots: Power x1, Utility x1 2097 | -8/Materials | Lost 3 parts (2n1u) 2152 | -8/Materials | Core integrity fell below 50% 2162 | -8/Materials | Core integrity fell below 20% 2167 | -8/Materials | Destroyed by Y-45 Defender with Heavy Assault Rifle Last Messages --------------- 02133_ U-05 Engineer builds a Wall. 02137_ Overheating: Energy bleed (-14). 02139_ Hvy. Ion Cannon destroyed. 02139_ U-05 Engineer builds a Wall. 02139_ Structural Scanner destroyed. 02141_ U-05 Engineer builds a Wall. 02145_ Critical hit (Burn: +37). 02145_ U-05 Engineer builds a Wall. 02155_ Destroyed Imp. Heat Sink. 02155_ G-47 Trooper system corrupted by crushing effect. 02161_ G-47 Trooper misfires. 02163_ Dropped Lrg. Storage Unit. 02163_ R-06 Scavenger collects Imp. Light Armor Plating. 02164_ Dropped Arm. Huge Wheel. 02164_ Powered Hammer destroyed. 02165_ Acquired Hvy. Ion Cannon. 02166_ R-06 Scavenger collects Arm. Huge Wheel. 02167_ Acquired Hvy. Ion Cannon. Map ----- +----------------------------------------------------+ | | | | | | | | | | | | | | | | | ???????###############???????????????????????? | | ???????## ##???????????????????????? | | ???????## """ # ???????????????????????? | | ???????##""""" ! # ???????????????????????? | | ?????? ##""""" # ???????????????????????? | | ?????? ##""""" # ???????????????????????? | | ????"? ## """ # ????????????####???????? | | "" """ ## # ???????????!!!###??????? | | ##############+###### ?????????? !##??????? | | ##### # ##??????? | | #######"#####+# ##??????? | | % ##??????? | | #####+############ ##??????? | | # ## Y # #####+####??????? | | !== # """ "## Y= [# ## ##??????? | | !== # """"" "## ""!!r/% ## ?????????????? | | === # """"" "## " g# # ??????????????? | | + """"" T## Y !!@# ##??????????????? | | # """ "## ]/# ##??????????????? | | ????## " "######### ##??????????????? | | #???## # "######### ##??????????????? | | ###### # ##??????? ##??????????????? | | ###### ###########??????? ##??????????????? | | ####??????? #??????????????? | | ##????????? ???????????????? | | ##????????? ???????????????? | | ############# ##????????? ???????????????? | | ############# ##???????????????????????????? | | ???????????## ##???????????????????????????? | | ############# ##???????????????????????????? | | ############# ##???????????????????????????? | | + ##???????????????????????????? | | ######## ######???????????????????????? | | #########+#######???????????????????????? | | " #### ##???????????????????????? | | """ #### """ """ = ##???????????????????????? | | """ #### """ """ ##???????????????????????? | | """ #### """ """ ##???????????????????????? | | "" #### """ """ ##???????????????????????? | | """ #### ##???????????????????????? | | "" #### """T""" ##???????????????????????? | | """ #################???????????????????????? | +----------------------------------------------------+ Best States ------------- Heat Dissipation 39 Energy Generation 23 Energy Capacity 310 Matter Stores 400 Matter Capacity 400 Sight Range 16 Robot Scan Range 15 Terrain Scan Density 10 Armor Coverage 225 Evasion (%) 55 Targeting Accuracy 8 Recoil Reduction 2 Item Schematics ----------------- Imp. Hover Unit | -9/Materials | Scanalyzed Imp. Light Cannon | -9/Materials | Scanalyzed Robot Schematics ------------------ None Fabricated ------------ Nothing Repaired ---------- Nothing Studied --------- None Alien Tech Used ----------------- None Achievements -------------- None Challenges ------------ None Game ------ Seed AntigravXenonRocket Manual? 0 Play Time 00:28:01 Cumulative 24.5 hours Start 2026.01.08 @ 15:21:07 End 2026.01.29 @ 12:03:18 Sessions 2 Manual Loads 0 Difficulty Rogue Special Mode None Game No. 44 Rogue 44 Adventurer 0 Explorer 0 Win Type - Total 0 Types 0/0/0/0/0/0/0/0/0/0 Lore% 11 Gallery% 27 Achievement% 15 Wizard Run 0 Options --------- Layout 2 ASCII 0 Keyboard 1 Movement Numpad Keybinds 0 Fullscreen 1 Font 24/Smallcaps Map View 50x44 Zoom Use 0% Tactical HUD 1 Map Filters NONE Filters NONE Steam 1 RUN: 980445f3-d842-441f-b2e1-10cb50bd8bff